bitfinex-derivatives/quotes_BTCF0:USTF0_20240907
["timestamp","ask_amount","ask_price","bid_price","bid_amount"]
[1725678042416,0.43312456,53832.0,53831.0,0.31677173]
[1725678042811,0.43312455,53832.0,53831.0,0.31677173]
[1725678043311,0.09277037,53835.0,53834.0,0.092901]
[1725678043624,0.37197394,53837.0,53836.0,0.079927]
[1725678043815,0.33147955,53837.0,53836.0,0.3285333]
[1725678044021,0.27920357,53840.0,53836.0,0.3285333]
[1725678044022,0.11132444,53842.0,53837.0,0.079926]
[1725678044215,0.11132444,53843.0,53842.0,0.092887]
[1725678044413,0.30730625,53843.0,53842.0,0.1]
[1725678044620,0.01297,53843.0,53842.0,0.1]
[1725678044816,0.01297,53843.0,53842.0,0.10942868]
[1725678045013,0.29016742,53843.0,53842.0,0.10942868]
[1725678045815,0.29016742,53843.0,53842.0,0.20231568]
[1725678045816,0.36426972,53843.0,53842.0,0.20231568]
[1725678046617,0.29016742,53843.0,53842.0,0.20231568]
[1725678047726,0.27023742,53843.0,53842.0,0.20231568]
[1725678047929,0.26923742,53843.0,53842.0,0.20231568]
[1725678048113,0.33772988,53843.0,53842.0,0.20231568]
[1725678048423,0.33772988,53843.0,53842.0,0.22903404]
[1725678048812,0.28219742,53843.0,53842.0,0.22903404]
[1725678049426,0.23574037,53843.0,53842.0,0.22903404]
[1725678050215,0.10720838,53843.0,53842.0,0.22903404]
[1725678053419,0.06686838,53843.0,53842.0,0.32192104]
[1725678055726,0.01296,53843.0,53842.0,0.32192104]
[1725678056032,0.3265,53853.0,53852.0,0.09287]
[1725678056226,0.0459,53856.0,53853.0,0.079907]
[1725678056530,0.05886,53856.0,53855.0,0.1]
[1725678057033,0.33778125,53856.0,53855.0,0.1]
[1725678060722,0.33778125,53856.0,53855.0,0.192865]
[1725678061733,0.33778125,53856.0,53855.0,0.21992242]
[1725678062936,0.29188125,53856.0,53855.0,0.21992242]
[1725678064433,0.32198308,53856.0,53855.0,0.21992242]
[1725678065138,0.32198307,53856.0,53855.0,0.21992242]
[1725678065827,0.29188125,53856.0,53855.0,0.21992242]
[1725678070942,0.29188125,53856.0,53855.0,0.11992242]
[1725678071129,0.32198212,53856.0,53855.0,0.21992242]
[1725678072442,0.29188125,53856.0,53855.0,0.21992242]
[1725678072637,0.29188125,53856.0,53855.0,0.27548714]
[1725678072947,0.29188125,53856.0,53855.0,0.21992242]
[1725678074744,0.29188125,53856.0,53855.0,0.02705742]
[1725678074944,0.29188125,53856.0,53855.0,0.05557592]
[1725678075345,0.39572142,53856.0,53854.0,0.05557592]
[1725678075932,0.39572142,53856.0,53854.0,0.14844192]
[1725678076136,0.39572142,53856.0,53855.0,0.1]
[1725678077639,0.34018125,53856.0,53855.0,0.1]
[1725678078048,0.34018125,53856.0,53855.0,0.192865]
[1725678078548,0.34018125,53856.0,53855.0,0.24844092]
[1725678079046,0.39579648,53856.0,53855.0,0.24844092]
[1725678079445,0.37028539,53856.0,53855.0,0.192865]
[1725678080749,0.37028539,53856.0,53855.0,0.21924371]
[1725678080948,0.3702846,53856.0,53855.0,0.21924371]
[1725678081145,0.48136494,53856.0,53855.0,0.21924371]
[1725678081343,0.3702846,53856.0,53855.0,0.21924371]
[1725678082443,0.48136494,53856.0,53855.0,0.21924371]
[1725678083747,0.43306494,53856.0,53855.0,0.21924371]
[1725678084250,0.3219846,53856.0,53855.0,0.21924371]
[1725678085743,0.43306494,53856.0,53855.0,0.21924371]
[1725678086544,0.3219846,53856.0,53855.0,0.21924371]
[1725678087446,0.29188125,53856.0,53855.0,0.27481963]
[1725678087651,0.29188125,53856.0,53855.0,0.21924371]
[1725678088754,0.36608339,53856.0,53855.0,0.21924371]
[1725678091654,1.64178525,53856.0,53850.0,0.07400793]
[1725678091846,1.64178525,53856.0,53847.0,0.09290684]
[1725678091847,0.09287,53852.0,53851.0,0.05564507]
[1725678092049,0.092871,53851.0,53850.0,0.05564507]
[1725678092252,0.756851,53851.0,53850.0,0.05564507]
[1725678092454,0.092873,53850.0,53849.0,0.05564135]
[1725678092657,0.092873,53850.0,53849.0,0.055645]
[1725678092658,0.160033,53850.0,53849.0,0.055645]
[1725678092851,0.99673042,53850.0,53847.0,0.17503631]
[1725678093052,0.43961042,53850.0,53848.0,0.092876]
[1725678094457,0.06598117,53849.0,53848.0,0.092876]
[1725678094958,0.34623579,53849.0,53848.0,0.092876]
[1725678095162,0.35919579,53849.0,53848.0,0.092876]
[1725678097850,0.45207079,53849.0,53848.0,0.092876]
[1725678100158,0.45207079,53849.0,53847.0,0.02651331]
[1725678100159,0.092877,53848.0,53847.0,0.02651331]
[1725678100463,0.092884,53844.0,53843.0,0.092885]
[1725678100669,0.15887008,53844.0,53843.0,0.092885]
[1725678100863,0.45118033,53844.0,53843.0,0.092885]
[1725678101571,0.5153058,53844.0,53843.0,0.092885]
[1725678101768,0.55118145,53844.0,53843.0,0.092885]
[1725678102461,0.48519425,53844.0,53843.0,0.092885]
[1725678104365,0.38519425,53844.0,53843.0,0.092885]
[1725678104569,0.092892,53841.0,53840.0,0.092889]
[1725678104869,0.27774823,53841.0,53837.0,0.092895]
[1725678105067,0.29070823,53841.0,53837.0,0.092895]
[1725678105267,0.092893,53839.0,53837.0,0.092895]
[1725678105661,0.27805926,53838.0,53837.0,0.092895]
[1725678106267,0.29101926,53838.0,53837.0,0.092895]
[1725678106858,0.29101926,53838.0,53837.0,0.11943754]
[1725678110467,0.29101926,53838.0,53837.0,0.02654254]
[1725678110676,0.29101926,53838.0,53836.0,0.1]
[1725678111170,0.29101926,53838.0,53836.0,0.12740907]
[1725678114877,0.29101926,53838.0,53836.0,0.18305407]
[1725678115779,0.38391426,53838.0,53836.0,0.12740907]
[1725678116079,0.38391426,53838.0,53835.0,0.0552]
[1725678117477,0.4765483,53838.0,53835.0,0.0552]
[1725678117977,0.4765483,53838.0,53835.0,0.07905573]
[1725678118178,0.4765483,53838.0,53835.0,0.17195473]
[1725678118375,0.09263404,53837.0,53835.0,0.17195473]
[1725678118569,0.09263404,53837.0,53836.0,0.1]
[1725678118971,0.3842279,53837.0,53836.0,0.1]
[1725678119172,0.29159386,53837.0,53836.0,0.192897]
[1725678122069,0.3657633,53837.0,53836.0,0.192897]
[1725678122574,0.29159386,53837.0,53836.0,0.805782]
[1725678124575,0.29159386,53837.0,53836.0,1.00314613]
[1725678124576,0.24513263,53837.0,53836.0,1.00314613]
[1725678124777,0.24513263,53837.0,53836.0,0.44590613]
[1725678124977,0.25809263,53837.0,53836.0,0.44590613]
[1725678125178,0.25068263,53837.0,53836.0,0.44590613]
[1725678129982,0.25809263,53837.0,53836.0,0.44590613]
[1725678132590,0.25809263,53837.0,53836.0,0.192897]
[1725678136191,0.25809263,53837.0,53836.0,0.26711268]
[1725678136994,0.31371782,53837.0,53836.0,0.092897]
[1725678137195,0.33226207,53837.0,53836.0,0.092897]
[1725678137495,0.25809263,53837.0,53836.0,0.092897]
[1725678137691,0.31169263,53837.0,53835.0,0.12385573]
[1725678137894,0.07415789,53836.0,53835.0,0.12385573]
[1725678138092,0.08711789,53836.0,53835.0,0.12385573]
[1725678138295,0.36390817,53836.0,53835.0,0.12385573]
[1725678139595,0.28975028,53836.0,53835.0,0.12385573]
[1725678142103,0.28975028,53836.0,53835.0,0.02385573]
[1725678142307,0.28975028,53836.0,53835.0,0.1]
[1725678142807,0.28975028,53836.0,53835.0,0.19277178]
[1725678143203,0.28975028,53836.0,53835.0,0.33430357]
[1725678144208,0.28975028,53836.0,53835.0,0.33443079]
[1725678144396,0.28975028,53836.0,53835.0,0.38653079]
[1725678145806,0.05561931,53845.0,53835.0,1.71602706]
[1725678145993,0.05561931,53846.0,53844.0,0.16710081]
[1725678146196,0.05561931,53846.0,53845.0,0.18369741]
[1725678146411,0.33296327,53846.0,53845.0,0.18369741]
[1725678146798,0.05561931,53846.0,53845.0,0.18369741]
[1725678147001,0.33481327,53846.0,53845.0,0.18369741]
[1725678148107,0.33481327,53846.0,53845.0,0.17421681]
[1725678150909,0.27919396,53846.0,53845.0,0.1]
[1725678151109,0.27919396,53846.0,53845.0,0.19859216]
[1725678151110,0.33481063,53846.0,53845.0,0.19859216]
[1725678151300,0.34592063,53846.0,53845.0,0.19859216]
[1725678151500,0.34592063,53846.0,53845.0,0.12437535]
[1725678153909,0.29030396,53846.0,53845.0,0.19859216]
[1725678154406,0.29030396,53846.0,53845.0,0.12437535]
[1725678154607,0.29030396,53846.0,53845.0,0.19858109]
[1725678158209,0.29030396,53846.0,53845.0,0.29146309]
[1725678159502,0.29030396,53846.0,53845.0,0.21725735]
[1725678160014,0.05561667,53850.0,53845.0,0.21725735]
[1725678160015,0.02501059,53851.0,53850.0,0.092873]
[1725678160310,0.28009292,53852.0,53851.0,0.092871]
[1725678160510,0.28009292,53852.0,53851.0,0.179911]
[1725678160707,0.16701489,53860.0,53851.0,0.179911]
[1725678160708,0.28009292,53854.0,53851.0,0.179911]
[1725678160905,0.16701489,53860.0,53853.0,0.08704]
[1725678161113,0.16701489,53860.0,53858.0,0.15560903]
[1725678161114,0.28009292,53859.0,53858.0,0.15560903]
[1725678161314,0.01296,53859.0,53858.0,0.1]
[1725678161708,0.29116055,53859.0,53858.0,0.1]
[1725678164206,0.29116055,53859.0,53858.0,0.15554169]
[1725678165610,0.29116055,53859.0,53858.0,0.1]
[1725678165809,0.29116055,53859.0,53858.0,0.15553054]
[1725678166815,0.29116055,53859.0,53858.0,0.17947884]
[1725678168518,0.29116055,53859.0,53858.0,0.1239483]
[1725678169223,0.29116055,53859.0,53858.0,0.17946364]
[1725678169412,0.29116055,53859.0,53858.0,0.1239483]
[1725678169720,0.38379459,53859.0,53858.0,0.1239483]
[1725678170421,0.29116055,53859.0,53858.0,0.1239483]
[1725678172226,0.3212615,53859.0,53858.0,0.1239483]
[1725678173716,0.3212615,53859.0,53858.0,0.2168073]
[1725678174115,0.32126126,53859.0,53858.0,0.2168073]
[1725678177624,0.29116055,53859.0,53858.0,0.2168073]
[1725678178728,0.29116055,53859.0,53858.0,0.1168073]
[1725678179230,0.29116055,53859.0,53858.0,0.2168073]
[1725678184528,0.29116055,53859.0,53858.0,0.1239483]
[1725678185340,0.32126175,53859.0,53858.0,0.1239483]
[1725678187533,0.4324226,53859.0,53858.0,0.1239483]
[1725678188227,0.32126175,53859.0,53858.0,0.1239483]
[1725678188629,0.43254266,53859.0,53858.0,0.1239483]
[1725678188934,0.32126175,53859.0,53858.0,0.2168073]
[1725678192544,0.32125911,53859.0,53858.0,0.2168073]
[1725678192741,0.29116055,53859.0,53858.0,0.35827547]
[1725678194447,0.29116055,53859.0,53858.0,0.45108661]
[1725678197449,0.29116055,53859.0,53858.0,0.45108773]
[1725678197651,0.29116055,53859.0,53858.0,0.25822873]
[1725678197943,0.29116055,53859.0,53858.0,0.1239483]
[1725678198144,0.29116055,53859.0,53858.0,0.0239483]
[1725678198350,0.092862,53857.0,53855.0,0.19281114]
[1725678198534,0.16707205,53857.0,53855.0,0.1]
[1725678198734,0.27781673,53856.0,53855.0,0.1]
[1725678199538,0.29077673,53856.0,53855.0,0.1]
[1725678199933,0.29077673,53856.0,53854.0,0.092866]
[1725678201045,0.29077673,53856.0,53855.0,0.1]
[1725678203138,0.38363973,53856.0,53855.0,0.1]
[1725678203740,0.38363973,53856.0,53854.0,0.02445563]
[1725678203741,0.092865,53855.0,53854.0,0.02445563]
[1725678204041,0.092873,53850.0,53848.0,0.09281114]
[1725678204246,0.092873,53850.0,53847.0,0.09281114]
[1725678204443,0.092873,53850.0,53845.0,0.1179]
[1725678204444,0.27984504,53849.0,53846.0,0.09281114]
[1725678205249,0.29280504,53849.0,53845.0,0.28569314]
[1725678205448,0.29280504,53849.0,53845.0,0.19281114]
[1725678205757,0.29280504,53849.0,53847.0,0.092878]
[1725678206836,0.29280504,53849.0,53845.0,0.21660412]
[1725678206837,0.38568004,53849.0,53845.0,0.21660412]
[1725678207041,0.38568004,53849.0,53848.0,0.07419182]
[1725678207642,0.38568004,53849.0,53847.0,0.07419182]
[1725678208050,0.38776004,53849.0,53847.0,0.07419182]
[1725678208252,0.38568004,53849.0,53847.0,0.07419182]
[1725678209246,0.38568004,53849.0,53846.0,0.07419182]
[1725678210945,0.38568004,53849.0,53848.0,0.05561202]
[1725678211860,0.38568004,53849.0,53848.0,0.1]
[1725678212155,0.38568004,53849.0,53848.0,0.15561202]
[1725678212541,0.38568004,53849.0,53848.0,0.1]
[1725678212744,0.38568004,53849.0,53848.0,0.15561202]
[1725678213353,0.38568004,53849.0,53848.0,0.1]
[1725678213546,0.38568004,53849.0,53848.0,0.15561202]
[1725678214650,0.38568004,53849.0,53848.0,0.1]
[1725678216361,0.38568004,53849.0,53848.0,0.15558561]
[1725678218268,0.38568004,53849.0,53848.0,0.1]
[1725678223159,0.29280504,53849.0,53848.0,0.1]
[1725678224364,0.29280504,53849.0,53848.0,0.15559795]
[1725678224867,0.29280504,53849.0,53848.0,0.24847495]
[1725678225957,0.29280504,53849.0,53848.0,0.192877]
[1725678226461,0.29280504,53849.0,53848.0,0.24847495]
[1725678227364,0.29280504,53849.0,53848.0,0.192877]
[1725678229765,0.24635284,53849.0,53848.0,0.33437042]
[1725678232566,0.1865155,53849.0,53848.0,1.49149042]
[1725678232868,0.07418022,53861.0,53848.0,1.5708167]
[1725678233068,0.40068022,53862.0,53860.0,0.1]
[1725678233272,0.27734576,53861.0,53860.0,0.092856]
[1725678233569,0.27734576,53861.0,53860.0,0.192856]
[1725678233759,0.29030576,53861.0,53860.0,0.192856]
[1725678234067,0.01296,53861.0,53860.0,0.192856]
[1725678234469,0.29240447,53861.0,53860.0,0.192856]
[1725678236363,0.29240447,53861.0,53860.0,0.26696166]
[1725678237073,0.29240447,53861.0,53860.0,0.29071374]
[1725678237865,0.43378769,53861.0,53860.0,0.21660808]
[1725678239372,0.32250177,53861.0,53860.0,0.21660808]
[1725678244769,0.29240447,53861.0,53860.0,0.21660808]
[1725678249273,0.29240447,53861.0,53860.0,0.29071374]
[1725678251774,0.29240447,53861.0,53860.0,0.21660808]
[1725678251974,0.29240447,53861.0,53860.0,0.29071374]
[1725678253983,0.29240447,53861.0,53860.0,0.21660808]
[1725678255479,0.14482575,53861.0,53860.0,0.21660808]
[1725678255680,0.13014507,53871.0,53860.0,0.21660808]
[1725678255681,0.0562,53871.0,53860.0,0.35799978]
[1725678255883,0.0562,53871.0,53870.0,0.15557047]
[1725678256187,0.34853386,53871.0,53870.0,0.15557047]
[1725678256580,0.44137086,53871.0,53870.0,0.15557047]
[1725678259381,0.44137086,53871.0,53870.0,0.15559962]
[1725678259783,0.47146561,53871.0,53870.0,0.1]
[1725678261188,0.47146561,53871.0,53870.0,0.12357037]
[1725678262380,0.58275153,53871.0,53870.0,0.12357037]
[1725678263084,0.47146561,53871.0,53870.0,0.12357037]
[1725678263294,0.58264625,53871.0,53870.0,0.12357037]
[1725678267493,0.47146561,53871.0,53870.0,0.12357037]
[1725678267901,0.44137086,53871.0,53870.0,0.19766433]
[1725678268085,0.44137086,53871.0,53870.0,0.12357037]
[1725678268285,0.34853386,53871.0,53870.0,0.12357037]
[1725678269397,0.34853386,53871.0,53870.0,0.19766433]
[1725678272891,0.34853386,53871.0,53870.0,0.29050333]
[1725678273201,0.34853386,53871.0,53870.0,0.21640937]
[1725678273502,0.29233386,53871.0,53870.0,0.21640937]
[1725678274090,0.29233386,53871.0,53870.0,0.22579937]
[1725678274898,0.35827947,53871.0,53870.0,0.22579937]
[1725678275605,0.35827947,53871.0,53870.0,0.21640937]
[1725678276098,0.40373213,53871.0,53870.0,0.22559691]
[1725678276300,0.40373546,53871.0,53870.0,0.22559691]
[1725678276802,0.40373546,53871.0,53870.0,0.21640937]
[1725678276999,0.40373546,53871.0,53870.0,0.11640937]
[1725678277203,0.40373546,53871.0,53870.0,0.02357037]
[1725678277411,0.51733546,53871.0,53858.0,0.092859]
[1725678277703,0.12968844,53869.0,53865.0,0.1]
[1725678277898,0.19563664,53869.0,53865.0,0.1]
[1725678278103,0.34560604,53868.0,53865.0,0.1]
[1725678278305,0.0659482,53867.0,53866.0,0.092846]
[1725678278607,0.34560604,53867.0,53866.0,0.092846]
[1725678278905,0.35856604,53867.0,53866.0,0.092846]
[1725678281908,0.29261784,53867.0,53866.0,0.327085]
[1725678283505,0.29261784,53867.0,53866.0,0.23429574]
[1725678284704,0.34821646,53867.0,53866.0,0.23429574]
[1725678287906,0.34821646,53867.0,53866.0,0.25813687]
[1725678288109,0.29261784,53867.0,53866.0,0.16529087]
[1725678289007,0.29261784,53867.0,53866.0,0.25812561]
[1725678291811,0.29261784,53867.0,53866.0,0.11667587]
[1725678292009,0.29261784,53867.0,53866.0,0.02384113]
[1725678292213,0.29261784,53867.0,53865.0,0.19283474]
[1725678292214,0.36674934,53867.0,53865.0,0.19283474]
[1725678293010,0.29261784,53867.0,53865.0,0.19283474]
[1725678293210,0.36674934,53867.0,53865.0,0.19283474]
[1725678293717,0.29261784,53867.0,53865.0,0.19283474]
[1725678294616,0.46674934,53867.0,53865.0,0.02361949]
[1725678294810,0.092846,53866.0,53865.0,0.07426314]
[1725678295120,0.092847,53865.0,53864.0,0.07426314]
[1725678295410,0.37009514,53865.0,53864.0,0.07426314]
[1725678295617,0.44424923,53865.0,53863.0,0.07426314]
[1725678295921,0.07415409,53864.0,53863.0,0.07426314]
[1725678296417,0.35383814,53864.0,53863.0,0.07426314]
[1725678296615,0.36679814,53864.0,53863.0,0.07426314]
[1725678297218,0.29264405,53864.0,53863.0,0.07426314]
[1725678299107,0.29264405,53864.0,53862.0,0.07426314]
[1725678301617,0.05557333,53863.0,53862.0,0.07426314]
[1725678301820,0.06853333,53863.0,53862.0,0.07426314]
[1725678302119,0.29166443,53863.0,53862.0,0.192853]
[1725678302324,0.29166443,53863.0,53862.0,0.33429371]
[1725678302615,0.29166443,53863.0,53862.0,0.1]
[1725678304812,0.44008876,53863.0,53862.0,0.1]
[1725678305004,0.38451543,53863.0,53862.0,0.1]
[1725678305208,0.38451543,53863.0,53862.0,0.17418782]
[1725678305209,0.44009092,53863.0,53862.0,0.17418782]
[1725678305426,0.44009092,53863.0,53862.0,0.1]
[1725678305607,0.38451543,53863.0,53862.0,0.1]
[1725678307714,0.38451543,53863.0,53861.0,0.07418782]
[1725678307715,0.34723992,53863.0,53861.0,0.07418227]
[1725678307909,0.44723992,53863.0,53860.0,0.07418227]
[1725678308114,0.14841324,53862.0,53861.0,0.05563913]
[1725678308423,0.427089,53862.0,53861.0,0.05563913]
[1725678309526,0.440049,53862.0,53861.0,0.05563913]
[1725678310422,0.092854,53861.0,53860.0,0.05563913]
[1725678310827,0.37156808,53861.0,53860.0,0.05563913]
[1725678311014,0.38452808,53861.0,53860.0,0.05563913]
[1725678311414,0.38452808,53861.0,53858.0,0.07418227]
[1725678314013,0.15555827,53860.0,53859.0,0.07418227]
[1725678314212,0.15555827,53860.0,53857.0,0.13429112]
[1725678314213,0.1,53860.0,53857.0,0.07951732]
[1725678314409,0.1,53860.0,53857.0,0.02389112]
[1725678314410,0.1,53858.0,53857.0,0.02389112]
[1725678314624,0.092863,53856.0,53855.0,0.0556262]
[1725678314931,0.36994065,53856.0,53855.0,0.0556262]
[1725678315119,0.092866,53854.0,53853.0,0.02372251]
[1725678315321,0.092866,53854.0,53852.0,0.07418227]
[1725678315513,0.38290365,53854.0,53851.0,0.16705327]
[1725678317320,0.092868,53853.0,53851.0,0.07418227]
[1725678317521,0.092868,53853.0,53849.0,0.1]
[1725678317522,0.092868,53853.0,53850.0,0.07418227]
[1725678317731,0.27785554,53852.0,53850.0,0.07418227]
[1725678318423,0.29081554,53852.0,53849.0,0.2907099]
[1725678318622,0.29081554,53852.0,53850.0,0.07418227]
[1725678319425,0.29081554,53852.0,53849.0,0.2907099]
[1725678319733,0.38368554,53852.0,53850.0,0.07418227]
[1725678320121,0.29081554,53852.0,53851.0,0.26705327]
[1725678320436,0.29081554,53852.0,53851.0,0.192871]
[1725678321426,0.29081554,53852.0,53851.0,0.1]
[1725678323025,0.24436511,53852.0,53851.0,0.1]
[1725678324922,0.24436511,53852.0,53851.0,0.33431768]
[1725678325129,0.24436511,53852.0,53851.0,0.1]
[1725678325632,0.24436511,53852.0,53851.0,0.192871]
[1725678326033,0.24436511,53852.0,53851.0,0.1]
[1725678326222,0.33723511,53852.0,53851.0,0.0741492]
[1725678326424,0.092871,53851.0,53850.0,0.0741492]
[1725678326631,0.11296,53851.0,53850.0,0.05561319]
[1725678326827,0.11296,53851.0,53846.0,0.51139237]
[1725678326828,0.092873,53850.0,53849.0,0.05561319]
[1725678327139,0.092873,53850.0,53848.0,0.05561319]
[1725678327140,0.092875,53849.0,53848.0,0.05561319]
[1725678327430,0.37291753,53849.0,53847.0,0.05561575]
[1725678327827,0.37291753,53849.0,53846.0,0.5353674]
[1725678327828,0.37291753,53849.0,53846.0,0.59098315]
[1725678328031,0.38587753,53849.0,53846.0,0.59098315]
[1725678328337,0.38587753,53849.0,53847.0,0.05561575]
[1725678328636,0.29300253,53849.0,53848.0,0.092877]
[1725678328825,0.29300253,53849.0,53848.0,0.14849275]
[1725678329027,0.29300253,53849.0,53848.0,0.092877]
[1725678329739,0.29300253,53849.0,53846.0,0.7095166]
[1725678329934,0.29300253,53849.0,53847.0,0.0611]
[1725678330734,0.29300253,53849.0,53847.0,0.1352492]
[1725678331226,0.29300253,53849.0,53847.0,0.2281272]
[1725678331428,0.29300253,53849.0,53848.0,0.0741492]
[1725678333334,0.29300253,53849.0,53847.0,0.153978]
[1725678337754,0.29300253,53849.0,53848.0,0.092877]
[1725678342453,0.29300253,53849.0,53848.0,0.18571174]
[1725678343146,0.29300253,53849.0,53848.0,0.32721023]
[1725678343651,0.29300253,53849.0,53848.0,0.18571174]
[1725678346945,0.29300253,53849.0,53848.0,0.32720988]
[1725678348138,0.29300253,53849.0,53848.0,0.23437514]
[1725678350242,0.05552168,53853.0,53852.0,0.09287]
[1725678350475,0.05552168,53857.0,53852.0,0.14148907]
[1725678350656,0.27943703,53857.0,53856.0,0.092863]
[1725678350851,0.01296,53857.0,53856.0,0.32711862]
[1725678351052,0.01296,53857.0,53856.0,0.23433677]
[1725678351356,0.29305964,53857.0,53856.0,0.32709536]
[1725678352047,0.0606,53864.0,53863.0,0.092851]
[1725678352247,0.0606,53864.0,53863.0,0.192851]
[1725678352460,0.33804806,53864.0,53863.0,0.192851]
[1725678352655,0.29040806,53864.0,53863.0,0.192851]
[1725678352963,0.27744806,53864.0,53863.0,0.192851]
[1725678353264,0.27691074,53866.0,53863.0,0.192851]
[1725678353445,0.27691074,53866.0,53864.0,0.092849]
[1725678353757,0.27691074,53866.0,53863.0,0.17415815]
[1725678353758,0.27691074,53867.0,53865.0,0.092846]
[1725678353954,0.27691074,53867.0,53866.0,0.15559519]
[1725678354250,0.05552168,53869.0,53866.0,0.15559519]
[1725678354454,0.27870223,53867.0,53866.0,0.1]
[1725678354653,0.27870223,53868.0,53867.0,0.092844]
[1725678354862,0.27870223,53869.0,53868.0,0.092842]
[1725678355059,0.1187,53872.0,53869.0,0.09284]
[1725678355356,0.28022842,53871.0,53870.0,0.05556973]
[1725678355553,0.28022842,53871.0,53869.0,0.06478192]
[1725678355749,0.28022842,53872.0,53868.0,0.15556973]
[1725678355949,0.28015463,53870.0,53868.0,0.05556973]
[1725678356253,0.28015463,53871.0,53867.0,0.05556973]
[1725678356461,0.28015463,53871.0,53866.0,0.14841573]
[1725678356462,0.38015463,53871.0,53866.0,0.14841573]
[1725678356756,0.28015463,53869.0,53866.0,0.05556973]
[1725678356958,0.28015463,53870.0,53866.0,0.05556973]
[1725678357360,0.27670498,53868.0,53865.0,0.05556973]
[1725678357768,0.27670498,53869.0,53865.0,0.05556973]
[1725678357955,0.28966498,53869.0,53865.0,0.05556973]
[1725678358261,0.27926618,53867.0,53865.0,0.05556973]
[1725678358762,0.01296,53867.0,53865.0,0.05556973]
[1725678358969,0.27978642,53866.0,53865.0,0.05556973]
[1725678359265,0.29274642,53866.0,53865.0,0.05556973]
[1725678359771,0.01296,53866.0,53864.0,0.15556973]
[1725678360063,0.29274642,53866.0,53864.0,0.15556973]
[1725678360365,0.29274642,53866.0,53865.0,0.05549779]
[1725678360961,0.29274642,53866.0,53864.0,0.192849]
[1725678361353,0.29274642,53866.0,53865.0,0.05549777]
[1725678364267,0.29274642,53866.0,53865.0,0.14834477]
[1725678365655,0.29274642,53866.0,53865.0,0.092847]
[1725678370854,0.29274642,53866.0,53865.0,0.14834477]
[1725678371168,0.24630812,53866.0,53865.0,0.14834477]
[1725678371662,0.25926812,53866.0,53865.0,0.14834477]
[1725678372060,0.25926812,53866.0,53865.0,0.092847]
[1725678372864,0.25926812,53866.0,53865.0,0.16694049]
[1725678373063,0.25926812,53866.0,53865.0,0.16684269]
[1725678373369,0.25926812,53866.0,53865.0,0.092847]
[1725678374963,0.25926812,53866.0,53865.0,0.16686575]
[1725678375366,0.25926812,53866.0,53865.0,0.092847]
[1725678376170,0.25926812,53866.0,53865.0,0.16688561]
[1725678376371,0.25926812,53866.0,53865.0,0.092847]
[1725678377456,0.25926812,53866.0,53865.0,0.192847]
[1725678379469,0.25926812,53866.0,53865.0,0.42704744]
[1725678380465,0.25926812,53866.0,53865.0,0.33429731]
[1725678381367,0.25926812,53866.0,53865.0,0.44559747]
[1725678382568,0.25926812,53866.0,53865.0,0.33429731]
[1725678382866,0.25926812,53866.0,53865.0,0.44559747]
[1725678383272,0.25926812,53866.0,53865.0,0.33429731]
[1725678383460,0.25926812,53866.0,53865.0,0.23429731]
[1725678383660,0.25926812,53866.0,53865.0,0.33429731]
[1725678387071,0.35926812,53866.0,53865.0,0.14145031]
[1725678387264,0.45211412,53866.0,53864.0,0.09282395]
[1725678387571,0.45211412,53866.0,53863.0,0.0985902]
[1725678387773,0.45211412,53866.0,53865.0,0.05568034]
[1725678387983,0.092848,53865.0,53863.0,0.0985902]
[1725678388175,0.07410089,53864.0,53863.0,0.0985902]
[1725678388375,0.36380018,53864.0,53863.0,0.0985902]
[1725678388568,0.28969929,53864.0,53863.0,0.0985902]
[1725678389271,0.45664918,53864.0,53863.0,0.0985902]
[1725678389474,1.44665929,53864.0,53860.0,0.0742624]
[1725678389667,0.092857,53860.0,53858.0,0.05565735]
[1725678389867,0.07405416,53859.0,53857.0,0.05565735]
[1725678390068,0.07405416,53858.0,53857.0,0.05565735]
[1725678390377,0.35400646,53858.0,53855.0,0.19094927]
[1725678390570,0.2929123,53858.0,53856.0,0.05562824]
[1725678391075,0.2929123,53858.0,53857.0,0.05562824]
[1725678391462,0.2929123,53858.0,53856.0,0.05562824]
[1725678391665,0.05548442,53857.0,53856.0,0.05562824]
[1725678391866,0.06844442,53857.0,53856.0,0.05562824]
[1725678392166,0.38977064,53857.0,53856.0,0.05562824]
[1725678392366,0.38977064,53857.0,53855.0,0.17231511]
[1725678392565,0.44525423,53857.0,53855.0,0.11668687]
[1725678393271,0.1224,53856.0,53855.0,0.11668687]
[1725678393678,0.40206588,53856.0,53855.0,0.11668687]
[1725678393973,0.41502588,53856.0,53855.0,0.11668687]
[1725678395571,0.29262588,53856.0,53855.0,0.11668687]
[1725678402576,0.29262588,53856.0,53855.0,0.02382187]
[1725678402782,0.29262588,53856.0,53852.0,0.092869]
[1725678407981,0.29262588,53856.0,53854.0,0.1]
[1725678408180,0.29262588,53856.0,53855.0,0.092865]
[1725678409380,0.29262588,53856.0,53855.0,0.14849324]
[1725678409786,0.29262588,53856.0,53855.0,0.092865]
[1725678412892,0.29262588,53856.0,53855.0,0.1671274]
[1725678413087,0.29262588,53856.0,53855.0,0.092865]
[1725678413591,0.29262588,53856.0,53855.0,0.1671274]
[1725678414388,0.29262588,53856.0,53855.0,0.1669809]
[1725678414585,0.29262588,53856.0,53855.0,0.092865]
[1725678415181,0.29762588,53856.0,53855.0,0.093865]
[1725678416592,0.30662588,53856.0,53855.0,0.094865]
[1725678419593,0.36210947,53856.0,53855.0,0.094865]
[1725678423994,0.30662588,53856.0,53855.0,0.094865]
[1725678424592,0.36210947,53856.0,53855.0,0.094865]
[1725678426296,0.30662588,53856.0,53855.0,0.094865]
[1725678429305,0.36210947,53856.0,53855.0,0.094865]
[1725678431108,0.39948888,53856.0,53855.0,0.002]
[1725678431292,1.63058304,53856.0,53851.0,0.11727704]
[1725678431497,0.092875,53850.0,53848.0,0.09282395]
[1725678431708,0.14834943,53849.0,53847.0,0.09282395]
[1725678431906,0.5251414,53849.0,53847.0,0.09282395]
[1725678432201,0.24834943,53849.0,53846.0,0.09282395]
[1725678432403,0.3328999,53848.0,53845.0,0.09282395]
[1725678432707,0.3328999,53848.0,53844.0,0.18570695]
[1725678432895,0.3458599,53848.0,53844.0,0.18570695]
[1725678433203,0.05547343,53847.0,53845.0,0.07423033]
[1725678433395,0.09288,53846.0,53845.0,0.07423033]
[1725678433599,0.2787542,53846.0,53843.0,0.07423033]
[1725678433795,0.3716342,53846.0,53845.0,0.05567488]
[1725678433998,0.44568836,53846.0,53845.0,0.05567488]
[1725678434198,0.092882,53845.0,53843.0,0.05567488]
[1725678434700,0.088882,53845.0,53844.0,0.004]
[1725678434898,0.101842,53845.0,53844.0,0.004]
[1725678435100,0.101842,53845.0,53838.0,0.05567488]
[1725678435101,1.53828397,53845.0,53838.0,0.05567488]